[Event "Sardinia World Festival-A 2024"]
[Site "Orosei"]
[Date "2024.05.01"]
[Round "6.27"]
[White "Yilmaz, Baver"]
[Black "Aghayev, Miragha"]
[Result "1/2-1/2"]
[ECO "C64"]
[WhiteElo "2277"]
[BlackElo "2424"]
[Annotator "TA"]
[PlyCount "53"]
[EventDate "2024.04.26"]
[EventType "swiss"]
[EventCountry "ITA"]
[SourceTitle "playchess.com"]
[Source "ChessBase"]
[SourceQuality "1"]
[TimeControl "40/5400+30:1800+30"]

{[%evp 10,53,47,41,44,35,40,38,35,39,33,40,36,34,40,0,51,9,62,35,43,35,64,70,85,22,139,127,198,181,174,193,179,193,184,164,148,33,235,0,135,0,73,0,157,0]} 1. e4 {[%emt 0:00:08]} e5 {[%emt 0:00:49]} 2. Nf3 {[%emt 0:00:46]} Nc6 {[%emt 0:00:10]} 3. Bb5 {[%emt 0:00:21]} a6 {[%emt 0:00:40]} 4. Ba4 {[%emt 0:00:25]} Bc5 {[%emt 0:00:57]} 5. c3 {[%emt 0:02:16]} Nge7 {[%emt 0:00:24]} 6. O-O {[%emt 0:02:43]} Ba7 {[%emt 0:00:53]} 7. d4 {[%emt 0:02:41]} Ng6 {[%emt 0:00:13]} 8. Bg5 {[%emt 0:11:37]} f6 {[%emt 0:01:02] White is slightly better.} 9. Be3 {[%emt 0:00:30]} O-O {[%emt 0:00:53]} 10. Nbd2 {[%emt 0:03:58][%cal Bb1d2,Bd2f1,Bf1g3][%mdl 32]} d6 {[%emt 0:00:48]} 11. Re1 {[%emt 0:03:06]} Kh8 {[%emt 0:01:24]} 12. Nf1 {[%emt 0:04:40]} Nce7 {[%emt 0:03:49]} (12... f5 $11) 13. h4 {[%emt 0:06:50][%cal Bh2h4,Bh4h5][%mdl 32]} Ng8 {[%emt 0:18:42]} ({Black should play} 13... exd4 $11 14. cxd4 d5) 14. h5 {[%emt 0:05:41]} N6e7 {[%emt 0:00:40]} 15. Nh4 {[%emt 0:02:25]} Be6 {[%emt 0:02:01]} 16. Ng3 {[%emt 0:05:34]} Qc8 {[%emt 0:03:59]} 17. Kh1 {[%emt 0:05:00]} (17. Bc2 $16) 17... g5 {[%emt 0:09:29]} (17... exd4 $11 18. cxd4 d5) 18. hxg6 $16 {[%emt 0:02:57]} hxg6 {[%emt 0:01:59] [#]} (18... Nxg6 $16 {was worth a try.} 19. Nhf5 d5) 19. Nxg6+ $1 $18 {[%emt 0:07:27][%mdl 512]} Nxg6 {[%emt 0:00:40]} 20. Qh5+ {[%emt 0:00:12]} Kg7 {[%emt 0:00:24]} 21. Nf5+ {[%emt 0:01:01]} Bxf5 {[%emt 0:00:13]} 22. exf5 {[%emt 0:00:05]} N6e7 {[%emt 0:15:40]} 23. Qg4+ {[%emt 0:11:16]} ({White has to play} 23. g4 $1 $16 {And now Kg2 would win.} b5 24. Bb3) 23... Kf7 $2 {[%emt 0:00:48]} (23... Kh8 $1 $14 24. Qh4+ Kg7) 24. Qh5+ {[%emt 0:04:13]} (24. dxe5 $1 $18 {Intending e6+ and mate.} fxe5 (24... dxe5 $2 25. Bb3+ Ke8 26. Qh5+ Kd8 27. Rad1+ $18) 25. Bb3+ (25. Qh5+ Kg7 $11) 25... Ke8 26. Be6) 24... Kg7 $16 {[%emt 0:00:05]} 25. Qg4+ {[%emt 0:02:09]} (25. g4 $1 $16 {Strongly threatening Kg2.} b5 26. Bb3) 25... Kh8 {[%emt 0:00:10] [#]} (25... Kf7 $11 {keeps the balance.} 26. dxe5 fxe5 (26... dxe5 $2 {too greedy.} 27. Bb3+ Ke8 28. Qh5+ Kd8 29. Rad1+ $18)) 26. Qh5+ {[%emt 0:01:42]} (26. Qh4+ $142 $1 Kg7 27. g4) 26... Kg7 {[%emt 0:00:09] [#]} 27. Qg4+ $2 {[%emt 0:01:06] Weighted Error Value: White=0.58/Black=0.44.  Loses game:     	---       	Black=1      Mistake:       	White=6     	Black=5      Inaccurate:     	White=3     	Black=1      OK:         	White=4     	Black=6      Best:        	White=2     	Black=5      Brilliant:      	White=1     	---} ({Better is} 27. g4 $1 $16 b5 28. Bb3) 1/2-1/2

[Event "Sardinia World Festival-A 2024"]
[Site "Orosei"]
[Date "2024.05.01"]
[Round "6.28"]
[White "Yankelevich, Lev"]
[Black "Krawczyk, Flawian"]
[Result "1/2-1/2"]
[ECO "A13"]
[WhiteElo "2413"]
[BlackElo "2315"]
[Annotator "TA"]
[PlyCount "118"]
[EventDate "2024.04.26"]
[EventType "swiss"]
[EventCountry "ITA"]
[SourceTitle "playchess.com"]
[Source "ChessBase"]
[SourceQuality "1"]
[TimeControl "40/5400+30:1800+30"]

{[%evp 9,118,10,14,0,0,-9,0,-7,0,-39,-23,-45,-31,-68,-47,-59,-62,-66,-27,-99,-95,-83,-90,-92,-62,-133,-78,-85,0,0,0,0,25,19,28,-39,20,41,38,42,133,112,117,110,136,132,186,186,221,136,110,129,140,137,226,225,337,319,493,512,514,510,560,560,751,560,560,560,560,560,560,480,560,529,529,152,152,152,152,8,8,8,8,8,8,8,8,8,8,8,8,8,8,8,8,8,8,8,8,8,8,8,8,8,8,8,8,8,8,8,8]} 1. Nf3 {[%emt 0:00:15]} Nf6 {[%emt 0:00:08]} 2. c4 {[%emt 0:01:22]} e6 {[%emt 0:00:06]} 3. g3 {[%emt 0:00:57]} d5 {[%emt 1:31:46]} 4. Bg2 {[%emt 0:00:10]} d4 {[%emt 0:00:00]} 5. O-O {[%emt 0:00:57]} c5 {[%emt 0:00:00]} 6. b4 {[%emt 0:01:43]} cxb4 {[%emt 0:00:00]} 7. a3 {[%emt 0:00:05]} Nc6 {[%emt 0:00:00]} 8. d3 {[%emt 0:00:24]} a5 {[%emt 0:00:00]} 9. axb4 {[%emt 0:05:52]} Bxb4 {[%emt 0:00:00]} 10. Ba3 {[%emt 0:00:32]} O-O {[%emt 0:00:00]} 11. Ne1 {[%emt 0:00:30]} e5 {[%emt 0:00:00]} 12. Bxb4 {[%emt 0:12:11]} Nxb4 {[%emt 0:00:00]} 13. Nc2 {[%emt 0:00:03] Hoping for Nxb4.} Na6 {[%emt 0:00:00]} 14. Nd2 {[%emt 0:06:34]} (14. f4 $1 $11 {remains equal.}) 14... Nc5 $17 {[%emt 0:00:00]} 15. f4 {[%emt 0:01:13]} exf4 {[%emt 0:00:00]} 16. Rxf4 {[%emt 0:00:09]} Bg4 {[%emt 0:00:00] Against Nf3} 17. h3 {[%emt 0:01:07]} (17. Ne4 $15 Ncxe4 18. dxe4 Bxe2 19. Qxe2) 17... Bh5 {[%emt 0:00:00]} (17... Bd7 $142 18. Rh4 a4) 18. g4 {[%emt 0:00:24]} Ne6 {[%emt 0:00:00]} (18... Bg6 $1 $17 {Threatens to win with ...Re8.} 19. Nxd4 Re8) 19. Rxf6 $11 {[%emt 0:02:31]} Qxf6 {[%emt 0:00:00]} 20. gxh5 {[%emt 0:00:05][%cal Od1f1]} Nf4 {[%emt 0:00:00]} 21. Ne4 $36 {[%emt 0:02:12][%cal Bd2e4,Be4c3,Bc3d5,Bd5b6][%mdl 2080] Against Qg5. White has some pressure.} Qh4 {[%emt 0:00:00] ...f5 would now be deadly.} 22. Nxd4 {[%emt 0:04:57]} (22. Kh2 $11) 22... Nxh3+ {[%emt 0:00:00]} (22... f5 $1 $15 23. Nf3 Qxh5) 23. Bxh3 {[%emt 0:00:33]} Qxh3 {[%emt 0:00:00]} 24. Nf3 {[%emt 0:01:42] Active counter play! Excellent horsemanship.} f5 {[%emt 0:00:00]} ({Black should play} 24... Qxh5 $14 25. Qa4 Rfb8) 25. Nc3 $1 $16 {[%emt 0:06:35]} (25. Neg5 $6 Qxh5 26. Kf2 Rf6 $11) 25... Qxh5 {[%emt 0:00:00]} 26. Kf2 {[%emt 0:00:37]} Qh6 {[%emt 0:00:00]} 27. Nd5 {[%emt 0:00:39]} Qd6 {[%emt 0:00:00]} (27... Ra6 $16 28. Qb3 g5) 28. Qb3 $18 {[%emt 0:00:42]} Kh8 {[%emt 0:02:07]} 29. Qb6 {[%emt 0:02:04] Prevents Ra7} Qxb6+ {[%emt 0:01:14]} 30. Nxb6 {[%emt 0:00:02]} Ra6 {[%emt 0:00:00]} 31. c5 {[%emt 0:00:09][%mdl 1024] White has strong compensation.} h6 {[%emt 0:00:32] [#]} (31... Kg8 $16 32. Ra4 (32. d4 Rd8 $18) 32... h6) 32. Ne5 $1 {[%emt 0:00:35]} (32. d4 $6 Rd8 33. e3 Kg8) 32... Kh7 {[%emt 0:00:04] Repels Ng6} (32... Kg8 {was called for.} 33. Nec4 a4 34. Rxa4 (34. Nxa4 h5 $16) 34... Rxa4 35. Nxa4 g5) 33. Nec4 {[%emt 0:00:26]} (33. d4 a4 34. d5 (34. Nxa4 Rfa8 $17) (34. Rxa4 Rxa4 35. Nxa4 Rd8 $18) 34... a3 $18) 33... g5 {[%emt 0:02:06]} (33... a4 $142 34. Rxa4 (34. Nxa4 g5 $16) 34... Rxa4 35. Nxa4 h5) 34. Rxa5 {[%emt 0:00:45]} Rxa5 {[%emt 0:00:05]} 35. Nxa5 {[%emt 0:00:01]} f4 {[%emt 0:01:17][%cal Of4f3]} 36. Nxb7 {[%emt 0:00:19]} g4 {[%emt 0:00:03]} 37. c6 {[%emt 0:00:09] Strongly threatening c7.} f3 {[%emt 0:00:13]} 38. exf3 {[%emt 0:24:06]} Rxf3+ {[%emt 0:00:06]} 39. Kg2 {[%emt 0:00:04]} Rxd3 {[%emt 0:00:11]} 40. Na4 {[%emt 0:00:06] Prevents Rc3} (40. c7 Rc3 $16) 40... Re3 {[%emt 0:01:34]} 41. Nac5 {[%emt 0:35:51] Against Re6. Threatening mate with c7.} Re8 {[%emt 0:31:32]} 42. Nd6 {[%emt 0:00:31] Prevents Rc8} (42. c7 $18 {and the rest is easy. White wants to mate with Nd8.} Rc8 43. Ne6) 42... Re7 $16 {[%emt 0:00:04] [#]} 43. Na6 {[%emt 0:06:40] Prevents Rc7.} Re2+ {[%emt 0:00:24]} 44. Kg3 {[%emt 0:00:04]} (44. Kg1 $16) 44... Rc2 $11 {[%emt 0:00:04] The position is equal.} 45. c7 {[%emt 0:00:05]} (45. Kxg4 $2 Rxc6 $19) 45... h5 $1 {[%emt 0:00:25]} 46. Kh4 {[%emt 0:05:31]} (46. c8=Q $5 h4+ $8 47. Kxg4 Rxc8 48. Nxc8 $11) 46... Rh2+ $1 {[%emt 0:00:22]} 47. Kg5 {[%emt 0:01:01]} Rc2 {[%emt 0:00:07]} 48. Ne4 {[%emt 0:00:13][%cal Oa6c5] Prevents g3. White threatens Nac5! and mate.} ({Reject} 48. c8=R Rxc8 49. Ne4 (49. Nxc8 $2 {loses.} g3 $19) 49... Kh8 $15) ({But not} 48. c8=B Rxc8 49. Ne4 (49. Nxc8 $2 g3 $19) 49... Kg8 $15) 48... g3 {[%emt 0:01:55]} 49. Nxg3 {[%emt 0:08:20]} h4 {[%emt 0:00:15]} 50. Ne4 {[%emt 0:00:46][%cal Oa6c5] Intending Nac5! and mate.} Rc6 {[%emt 0:01:01]} 51. Kxh4 {[%emt 0:01:37]} Rxc7 {[%emt 0:00:05]} 52. Nxc7 {[%emt 0:00:03]} Kg6 {[%emt 0:00:04]} 53. Kg4 {[%emt 0:00:03]} Kf7 {[%emt 0:00:04]} 54. Kf5 {[%emt 0:00:05]} Ke7 {[%emt 0:00:05]} 55. Ke5 {[%emt 0:00:11]} Kd7 {[%emt 0:00:03]} 56. Nd5 {[%emt 0:00:08]} Kc6 {[%emt 0:00:04]} 57. Ne3 {[%emt 0:00:08]} Kb5 {[%emt 0:00:06]} 58. Kd5 {[%emt 0:00:04]} Kb4 {[%emt 0:00:06]} 59. Kd4 {[%emt 0:00:17]} Kb5 {[%emt 0:00:03] White really could win this.   Weighted Error Value: White=0.30/Black=0.25 (precise) .  Missed win:     	White=1     	---        Mistake:       	White=4     	Black=8      Inaccurate:     	White=3     	Black=3      OK:         	White=18    	Black=11     Best:        	White=4     	Black=6      Strong:       	White=2     	Black=2} 1/2-1/2

[Event "Sardinia World Festival-A 2024"]
[Site "Orosei"]
[Date "2024.05.01"]
[Round "6.29"]
[White "Lumachi, Gabriele"]
[Black "Andreev, Konstantin"]
[Result "1-0"]
[ECO "D24"]
[WhiteElo "2413"]
[BlackElo "2244"]
[Annotator "TA"]
[PlyCount "67"]
[EventDate "2024.04.26"]
[EventType "swiss"]
[EventCountry "ITA"]
[SourceTitle "playchess.com"]
[Source "ChessBase"]
[SourceQuality "1"]
[TimeControl "40/5400+30:1800+30"]

{[%evp 9,67,32,56,45,42,37,47,31,26,27,33,29,85,23,36,26,82,97,93,85,168,173,173,52,59,44,50,58,75,77,240,206,216,209,254,192,227,217,175,136,189,161,190,160,626,634,870,885,877,850,923,879,814,905,1418,1195,1231,1258,1875,1862]} 1. d4 {[%emt 0:00:08]} Nf6 {[%emt 0:00:20]} 2. c4 {[%emt 0:00:09]} e6 {[%emt 0:00:10]} 3. Nf3 {[%emt 0:00:06]} d5 {[%emt 0:00:03]} 4. Nc3 {[%emt 0:00:07]} dxc4 {[%emt 0:00:26]} 5. e4 {[%emt 0:00:07][%cal Be2e4,Be4e5][%mdl 32]} b5 {[%emt 0:00:13]} 6. e5 $1 {[%emt 0:00:09]} Nd5 {[%emt 0:00:05]} 7. Nxb5 {[%emt 0:00:04]} Nb6 {[%emt 0:00:05]} 8. a3 {[%emt 0:00:06] White is slightly better.} Ba6 {[%emt 0:01:46]} 9. Nc3 {[%emt 0:00:28]} Nc6 {[%emt 0:00:18]} 10. Be3 {[%emt 0:00:37]} Na5 {[%emt 0:05:44]} (10... Qd7 $11 {remains equal.}) 11. Qc2 {[%emt 0:07:01]} (11. b4 $16 Nb3 12. Rb1) 11... Be7 $11 {[%emt 0:01:18]} 12. Rd1 {[%emt 0:00:23][%cal Od4d5]} O-O {[%emt 0:01:02]} (12... Bb7 $11) 13. h4 $16 {[%emt 0:00:07][%cal Bh2h4,Bh4g5,Bg5h6][%mdl 32] White is more active.} h6 {[%emt 0:08:46] Prevents Ng5.} 14. Rh3 {[%emt 0:15:32][%cal Od4d5]} Nd5 {[%emt 0:07:36] [#]} (14... Bb7 $16) 15. Bxh6 $1 $18 {[%emt 0:16:21][%mdl 512]} gxh6 {[%emt 0:00:43] [#]} 16. Ng5 $1 {[%emt 0:00:12][%mdl 512]} Bxg5 $14 {[%emt 0:00:29]} (16... hxg5 $2 17. hxg5 f5 18. gxf6 $18 (18. exf6 Kf7 $18)) 17. hxg5 $40 {[%emt 0:00:07][%mdl 128] White is up to no good.} Kg7 {[%emt 0:00:55]} (17... Qxg5 $2 18. Rg3 $18) 18. Ne4 $1 {[%emt 0:07:46] Nf6 is the strong threat. Really sharp!} Rh8 {[%emt 0:08:59]} 19. gxh6+ {[%emt 0:02:29]} Kf8 $2 {[%emt 0:06:54] Black cannot hold the game after this.} (19... Rxh6 $16 20. Rxh6 Kxh6) 20. b4 {[%emt 0:10:49][%cal Oe4c5] And now Nc5! would win.} Nc6 {[%emt 0:06:26][%cal Ba5c6,Bc6e7,Be7g6][%mdl 32]} 21. Nc5 {[%emt 0:02:21] Strongly threatening Nxe6+.} (21. Bxc4 Bxc4 22. Qxc4 Nf4 $14) 21... Bc8 {[%emt 0:05:10]} ({Don't go for} 21... Nf4 $2 22. Rf3 (22. Nxa6 Nxh3 23. Qxc4 Qh4 $14) 22... Nxd4 23. Qe4 Nd3+ (23... Nxf3+ $2 24. Qxf3 Qc8 25. Qxf4 $18) 24. Bxd3 Nxf3+ 25. Qxf3 Rxh6 26. Bf1 $18 (26. Nxa6 cxd3 27. Rxd3 Qc8 $16)) 22. Qxc4 {[%emt 0:02:08] Threatens to win with Qc1.} ({But not} 22. Bxc4 Nce7 23. Qc1 Ng6 $18) 22... Nce7 {[%emt 0:01:52]} 23. Qc1 {[%emt 0:01:44][%mdl 1024] White has strong compensation.} Ng6 {[%emt 0:02:50]} 24. g3 {[%emt 0:02:24][%cal Bg2g3,Bg3g4][%mdl 32]} a5 {[%emt 0:05:23]} (24... Rh7 $16 25. Bd3 Kg8) 25. b5 {[%emt 0:00:29]} a4 {[%emt 0:02:01]} 26. Bd3 {[%emt 0:01:23]} c6 $2 {[%emt 0:01:58]} (26... Qe7 $16 27. h7 Ke8) 27. h7 $18 {[%emt 0:04:36] White is clearly winning.} (27. bxc6 Kg8 28. Kf1 Qe7 $18) 27... Nde7 {[%emt 0:04:41]} 28. g4 {[%emt 0:12:40]} Ke8 {[%emt 0:02:54]} 29. Ne4 {[%emt 0:01:38][%cal Bc5e4,Be4d6,Bd6f7][%mdl 32] Nf6+ would kill now.} Kd7 {[%emt 0:02:46]} 30. Nd6 {[%emt 0:01:16]} Qa5+ {[%emt 0:05:04]} 31. Kf1 {[%emt 0:00:19]} Rf8 {[%emt 0:00:14]} 32. Qh6 {[%emt 0:08:21]} Qd8 {[%emt 0:01:03]} 33. Bxg6 {[%emt 0:02:55]} Nxg6 {[%emt 0:00:05] [#]} 34. Nxf7 $1 {[%emt 0:00:32][%mdl 512] Weighted Error Value: White=0.20 (precise) /Black=0.53.  Loses game:     	---       	Black=2      Mistake:       	White=2     	Black=4      Inaccurate:     	---       	Black=1      OK:         	White=7     	Black=4      Best:        	White=2     	Black=1      Strong:       	White=1     	---        Brilliant:      	White=1     	---} 1-0

[Event "Sardinia World Festival-A 2024"]
[Site "Orosei"]
[Date "2024.05.01"]
[Round "6.30"]
[White "Perossa, Nicolas"]
[Black "Di Benedetto, Edoardo"]
[Result "1/2-1/2"]
[ECO "C13"]
[WhiteElo "2269"]
[BlackElo "2400"]
[Annotator "TA"]
[PlyCount "144"]
[EventDate "2024.04.26"]
[EventType "swiss"]
[EventCountry "ITA"]
[SourceTitle "playchess.com"]
[Source "ChessBase"]
[SourceQuality "1"]
[TimeControl "40/5400+30:1800+30"]

{[%evp 31,144,0,2,3,9,0,5,9,0,5,11,12,17,0,0,0,0,0,0,0,0,0,0,0,0,0,0,0,0,0,0,0,0,0,0,0,0,0,0,-13,0,0,0,0,0,0,0,0,0,0,0,-13,0,0,0,0,0,0,0,0,0,0,0,0,0,0,0,-8,-8,-8,-8,-8,-8,-8,-8,-8,-8,-8,-8,-17,-22,-22,0,0,0,0,0,0,0,0,0,0,0,0,0,0,0,-8,0,0,0,0,0,0,0,0,0,0,0,0,0,0,0,0,0]} 1. e4 {[%emt 0:00:02]} e6 {[%emt 0:00:06]} 2. d4 {[%emt 0:00:07]} d5 {[%emt 0:00:04]} 3. Nc3 {[%emt 0:00:07]} Nf6 {[%emt 0:00:04]} 4. Bg5 {[%emt 0:00:14]} dxe4 {[%emt 0:00:36]} 5. Nxe4 {[%emt 0:00:08]} Be7 {[%emt 0:00:07]} 6. Bxf6 {[%emt 0:00:56]} gxf6 {[%emt 0:00:16]} 7. Nf3 {[%emt 0:00:12]} f5 {[%emt 0:00:15]} 8. Nc3 {[%emt 0:00:08]} Nd7 {[%emt 0:00:06] C13: French: Classical System: 4 Bg5 Be7, Alekhine-Chatard Attack.} 9. g3 {[%emt 0:00:52]} c5 {[%emt 0:00:35]} 10. Bg2 {[%emt 0:04:29]} O-O {[%emt 0:01:28]} 11. O-O {[%emt 0:02:10]} Qb6 $146 {[%emt 0:01:54]} ({Predecessor:} 11... Bf6 12. Ne2 cxd4 13. Nfxd4 Ne5 14. c3 Bd7 15. Qb3 Rb8 16. Rfd1 Qe7 17. Nf4 Ng6 18. Nxf5 {1-0 Charvein,G (1993)-Beranger,A (1548) Marseille Estival 1st 2023 (7)}) 12. Na4 {[%emt 0:12:17]} Qa5 {[%emt 0:06:41]} 13. Nxc5 {[%emt 0:04:27]} Nxc5 {[%emt 0:00:10]} 14. dxc5 {[%emt 0:00:04]} Qxc5 {[%emt 0:00:11]} 15. Qd2 {[%emt 0:09:30]} Bf6 {[%emt 0:02:00]} 16. c3 {[%emt 0:03:19]} Rd8 {[%emt 0:07:12]} 17. Qh6 {[%emt 0:06:57]} Qe7 {[%emt 0:04:26]} 18. Rfe1 {[%emt 0:11:53]} Bd7 {[%emt 0:06:58]} 19. Nd4 {[%emt 0:05:40]} Bxd4 {[%emt 0:06:13]} 20. cxd4 {[%emt 0:00:34]} Bc6 {[%emt 0:01:06]} 21. Bxc6 {[%emt 0:02:28]} bxc6 {[%emt 0:00:10]} 22. Qf4 {[%emt 0:06:01]} Qf6 {[%emt 0:04:40]} 23. Re5 {[%emt 0:01:56]} Rab8 {[%emt 0:01:44]} 24. b3 {[%emt 0:01:56]} Rb4 {[%emt 0:11:31]} 25. Rd1 {[%emt 0:00:26]} Kg7 {[%emt 0:07:31]} 26. Rd3 {[%emt 0:07:06]} Rb5 {[%emt 0:03:08]} 27. Rde3 {[%emt 0:01:37]} Rbd5 {[%emt 0:00:21]} 28. Rxd5 {[%emt 0:00:27]} Rxd5 {[%emt 0:01:08]} 29. Re5 {[%emt 0:00:20]} Rd7 {[%emt 0:06:56]} 30. Kg2 {[%emt 0:01:21]} Qd8 {[%emt 0:06:26]} 31. Rc5 {[%emt 0:01:56]} Rxd4 {[%emt 0:00:26]} 32. Qe5+ {[%emt 0:01:27]} Kg6 {[%emt 0:00:34]} 33. Rxc6 {[%emt 0:03:07]} Rd2 {[%emt 0:00:59]} 34. a4 {[%emt 0:01:53]} a5 {[%emt 0:09:00]} (34... Qa8 $5 35. Qc5 $8 h6 $11) 35. h3 {[%emt 0:07:57]} h5 {[%emt 0:04:10]} (35... Qa8 {simplifies} 36. Qc5 h5 37. h4 Qb7) 36. g4 {[%emt 0:01:46]} hxg4 {[%emt 0:01:05]} 37. hxg4 {[%emt 0:00:01]} Qd5+ {[%emt 0:06:45]} (37... fxg4 $5 38. Qe4+ $8 Kf6 39. Qf4+ Ke7 40. Rc7+ (40. Qxg4 Qd5+ 41. Qf3 Qxf3+ 42. Kxf3 Rd3+ 43. Ke2 Rxb3 $11) 40... Rd7 41. Rxd7+ Qxd7 $11) 38. Qxd5 {[%emt 0:00:07]} Rxd5 {[%emt 0:00:08]} 39. gxf5+ {[%emt 0:00:30]} Kxf5 {[%emt 0:00:06]} 40. Rb6 {[%emt 0:00:16]} e5 {[%emt 0:00:47]} 41. Kf3 {[%emt 0:32:30]} Rd2 {[%emt 0:32:25]} 42. Ke3 {[%emt 0:00:00]} Rb2 {[%emt 0:00:00]} 43. Rb5 {[%emt 0:00:00]} f6 {[%emt 0:00:00]} 44. Rb8 {[%emt 0:00:00]} Kg5 {[%emt 0:00:00]} 45. Rg8+ {[%emt 0:00:00]} Kf5 {[%emt 0:00:00]} 46. Rb8 {[%emt 0:00:00]} Rc2 {[%emt 0:00:00]} 47. Rb5 {[%emt 0:00:00]} Rc3+ {[%emt 0:00:00]} 48. Kd2 {[%emt 0:00:00]} Rf3 {[%emt 0:00:00]} 49. Ke2 {[%emt 0:00:00]} Kf4 {[%emt 0:00:00]} 50. Rb6 {[%emt 0:06:16]} f5 {[%emt 0:00:00]} 51. Rb5 {[%emt 0:00:00]} e4 {[%emt 0:00:00]} 52. Rxa5 {[%emt 0:00:00]} Rxb3 {[%emt 0:00:00]} 53. Rb5 {[%emt 0:00:00]} Ra3 {[%emt 0:00:00]} 54. a5 {[%emt 0:00:00]} Ra2+ {[%emt 0:00:00]} 55. Kf1 {[%emt 0:00:00]} Kg4 {[%emt 0:00:00]} 56. Re5 {[%emt 0:00:00]} f4 {[%emt 0:00:00]} 57. Rxe4 {[%emt 0:00:00]} Kf3 {[%emt 0:00:00]} 58. Re5 {[%emt 0:00:00]} Rxf2+ {[%emt 0:00:00]} 59. Kg1 {[%emt 0:00:00]} Rg2+ {[%emt 0:00:00]} 60. Kf1 {[%emt 0:01:08]} Ra2 {[%emt 0:00:00]} 61. Kg1 {[%emt 0:00:05]} Ra1+ {[%emt 0:00:00]} 62. Kh2 {[%emt 0:00:04]} Kf2 {[%emt 0:00:00]} 63. Rb5 {[%emt 0:00:09]} Ra2 {[%emt 0:00:00]} 64. Rb3 {[%emt 0:01:16]} f3 {[%emt 0:00:00]} 65. a6 $1 {[%emt 0:02:40]} Ke2 {[%emt 0:00:00]} 66. Rb1 {[%emt 0:01:08]} Ke3+ {[%emt 0:00:00]} 67. Kg3 {[%emt 0:00:26]} Rg2+ {[%emt 0:00:00]} 68. Kh3 {[%emt 0:00:05]} Rg7 {[%emt 0:00:00]} 69. Rb3+ {[%emt 0:00:14]} Ke2 {[%emt 0:00:00]} 70. Rb2+ {[%emt 0:00:16]} Ke1 {[%emt 0:00:00]} 71. Rb1+ {[%emt 0:00:04]} Kd2 {[%emt 0:00:00]} 72. Rb2+ {[%emt 0:00:08]} Ke3 {[%emt 0:00:00]} 1/2-1/2

[Event "Sardinia World Festival-A 2024"]
[Site "Orosei"]
[Date "2024.05.01"]
[Round "6.31"]
[White "Krivenko, Dion"]
[Black "Shohat, Yotam"]
[Result "1/2-1/2"]
[ECO "B31"]
[WhiteElo "2254"]
[BlackElo "2398"]
[Annotator "TA"]
[PlyCount "60"]
[EventDate "2024.04.26"]
[EventType "swiss"]
[EventCountry "ITA"]
[SourceTitle "playchess.com"]
[Source "ChessBase"]
[SourceQuality "1"]
[TimeControl "40/5400+30:1800+30"]

{[%evp 13,60,-31,-29,-16,-23,-25,-26,-46,-27,-22,-37,-25,-16,-30,-16,-21,-14,-36,-31,-27,-37,-45,-7,-16,-15,-27,-14,-24,0,0,0,0,0,0,0,-9,-7,-7,0,-32,0,0,0,0,0,0,0,0,0]} 1. e4 {[%emt 0:01:50]} c5 {[%emt 0:00:03]} 2. Nf3 {[%emt 0:00:07]} Nc6 {[%emt 0:00:04]} 3. Bb5 {[%emt 0:00:07]} g6 {[%emt 0:00:07]} 4. c3 {[%emt 0:00:13]} Nf6 {[%emt 0:00:06]} 5. Qe2 {[%emt 0:00:05]} Bg7 {[%emt 0:00:07]} 6. O-O {[%emt 0:00:08]} O-O {[%emt 0:00:04]} 7. e5 {[%emt 0:01:11]} Nd5 {[%emt 0:00:10]} 8. d4 {[%emt 0:00:40]} cxd4 {[%emt 0:01:08]} 9. cxd4 {[%emt 0:00:09]} d6 {[%emt 0:04:34]} 10. h3 {[%emt 0:10:08] Against Bg4. Black has an edge.} Bd7 {[%emt 0:06:10]} 11. Nc3 {[%emt 0:21:38]} Nxc3 {[%emt 0:00:19]} 12. bxc3 {[%emt 0:00:04]} dxe5 {[%emt 0:07:47]} 13. Bxc6 {[%emt 0:04:46]} Bxc6 {[%emt 0:00:05]} 14. Nxe5 {[%emt 0:00:06]} Rc8 {[%emt 0:05:40][%cal Ba8c8,Bc8c6,Bc6c4,Bc4a4,Ba4a2][%mdl 32]} 15. Rb1 {[%emt 0:09:08]} (15. Nxc6 $5 Rxc6 16. Bd2 $15) 15... b6 {[%emt 0:04:54]} 16. Nxc6 {[%emt 0:11:58]} Rxc6 {[%emt 0:00:02]} 17. Bd2 {[%emt 0:00:09]} e6 {[%emt 0:01:42]} 18. Qa6 {[%emt 0:05:26]} Qd7 {[%emt 0:03:51]} 19. Rfd1 {[%emt 0:03:06]} Rfc8 {[%emt 0:03:18]} 20. a4 {[%emt 0:03:57]} Rc4 {[%emt 0:14:20]} 21. a5 {[%emt 0:03:35]} Ra4 {[%emt 0:03:22]} 22. Qb5 {[%emt 0:00:19]} Qxb5 {[%emt 0:02:54]} 23. Rxb5 {[%emt 0:00:26]} bxa5 {[%emt 0:09:03]} 24. Rb7 {[%emt 0:00:59]} Ra2 {[%emt 0:06:34]} 25. Be3 {[%emt 0:04:58]} h5 {[%emt 0:07:40]} ({Not} 25... Rxc3 26. Rb8+ Bf8 27. Bh6) 26. Rc1 {[%emt 0:01:18]} a6 {[%emt 0:07:17]} 27. Ra7 {[%emt 0:05:22] The position is equal.} Ra3 {[%emt 0:02:38]} 28. Rxa6 {[%emt 0:02:16]} Raxc3 {[%emt 0:00:26]} 29. Rxc3 {[%emt 0:01:09]} Rxc3 {[%emt 0:00:03]} 30. Rxa5 {[%emt 0:00:08]} Rc8 {[%emt 0:01:07] Weighted Error Value: White=0.06 (flawless) /Black=0.06 (flawless) .  Inaccurate:     	White=1     	Black=2      OK:         	White=9     	Black=11     Best:        	White=1     	---} 1/2-1/2